Cogmind - Beta 9.4 @@@ ROGUE MODE // 2020.01.08 @ 13:21:57 Player: TannHaals Result: Destroyed by G-34 Mercenary with Small Laser Performance ------------- Evolutions (1) 500 Regions Visited (2) 400 Robots Destroyed (15) 75 Value Destroyed (367) 367 Prototype IDs (0) 0 Alien Tech Used (0) 0 Bonus (0) 0 TOTAL SCORE: 1342 Bonus ------- None Cogmind --------- Core Integrity 0/400 Matter 300/300 Energy 100/100 System Corruption 0% Temperature Cool (6) Movement Core (50) Location -9/Materials Parts ------- > --- POWER (2) -------- (None) > --- PROPULSION (2) --- (None) > --- UTILITY (2) ------ Targeting Computer > --- WEAPON (3) ------- (None) > --- INVENTORY (4) ---- Wheel Improved Heat Sink Small Storage Unit Armor Integrity Analyzer Peak State ------------ > --- POWER ------------ Light Nuclear Core > --- PROPULSION ------- Wheel Compact Wheel > --- UTILITY ---------- Targeting Computer Targeting Computer > --- WEAPON ----------- Heavy EM Pulse Gun Light Assault Rifle Light Assault Rifle > --- INVENTORY -------- Improved Heat Sink Small Storage Unit Armor Integrity Analyzer [Rating: 11] Favorites ----------- Power Ion Engine Engine Ion Engine Power Core Light Nuclear Core Propulsion Compact Wheel Wheel Compact Wheel Utility Targeting Computer Processor Targeting Computer Weapon Light Assault Rifle Energy Gun Heavy EM Pulse Gun Ballistic Gun Light Assault Rifle Build | -11 -10 -9 ------- Run | Scr Mat Mat Slots Evolved 2 | . . 2 Power 1 | . . 1 Propulsion . | . . . Utility . | . . . Weapon 1 | . . 1 Parts Attached 13 | 5 2 6 Power 3 | 1 . 2 Engine 2 | 1 . 1 Core 1 | . . 1 Reactor . | . . . Propulsion 3 | 2 1 . Treads . | . . . Leg . | . . . Wheel 3 | 2 1 . Hover . | . . . Flight . | . . . Utility 2 | . . 2 Device . | . . . Storage . | . . . Processor 2 | . . 2 Hackware . | . . . Protection . | . . . Artifact . | . . . Weapon 5 | 2 1 2 Energy Gun 1 | . . 1 Energy Cannon . | . . . Ballistic Gun 4 | 2 1 1 Ballistic Cannon . | . . . Launcher . | . . . Special Weapon . | . . . Impact Weapon . | . . . Slashing Weapon . | . . . Piercing Weapon . | . . . Special Melee Weapon . | . . . Unidentified Prototypes . | . . . Parts Lost 7 | . . 7 Power 1 | . . 1 Propulsion 1 | . . 1 Utility 1 | . . 1 Weapon 4 | . . 4 Highest Loss Streak 5 | . . 5 Average Slot Usage (%) 73 | . 71 74 Engine 10 | . 14 9 Core 2 | . . 3 Wheel 19 | . 28 16 Processor 15 | . . 19 Energy Gun 2 | . . 3 Ballistic Gun 23 | . 28 21 Naked Turns . | . . . Heaviest Build 14 | 7 8 14 Greatest Support 26 | 26 26 26 Greatest Overweight (x) 1 | 1 . . Average Overweight (x) . | . . . Largest Inventory Capacity 4 | 4 4 4 Average Capacity 4 | 4 4 4 Most Carried 4 | 3 4 4 Average Carried 2 | 1 3 2 Final Capacity 4 | 4 4 4 Final Carried 4 | 3 4 4 Class Distribution -------------------- 64% | Mutant 35% | Gunner Dominant Class ---------------- Mutant | -10/Materials Gunner | -9/Materials Resources | -11 -10 -9 ----------- Run | Scr Mat Mat Matter Collected 438 | 148 68 222 Remotely . | . . . Salvage Created 548 | 52 115 381 Parts 33 | 3 7 23 Haulers Intercepted . | . . . Recyclers Shooed . | . . . Parts Field Recycled . | . . . Retrieved Matter . | . . . Parts Self-Destructed . | . . . Prevented . | . . . Kills | -11 -10 -9 ------- Run | Scr Mat Mat Combat Hostiles Destroyed 11 | . 2 9 Guns 11 | . 2 9 Classes Destroyed 7 | 1 2 4 Worker 1 | . . 1 Builder 1 | . . 1 Recycler 1 | 1 . . Watcher 1 | . 1 . Swarmer 3 | . . 3 Grunt 7 | . 2 5 Sentry 1 | . . 1 Best Kill Streak 5 | 1 2 5 Combat Bots Only 5 | . 2 5 Max Kills in Single Turn 1 | 1 1 1 Gunslinging . | . . . Exploded . | . . . Melee . | . . . Uniques/NPCs Destroyed . | . . . Combat | -11 -10 -9 -------- Run | Scr Mat Mat Damage Taken 952 | . 43 909 Core 417 | . 11 406 Absorbed by Shields . | . . . Core Remaining (%) 97 | 100 95 . Volleys Fired 53 | 5 7 41 Largest 3 | 2 2 3 Hottest 85 | 40 40 85 Shots Fired 120 | 10 14 96 Gun 120 | 10 14 96 Cannon . | . . . Launcher . | . . . Special . | . . . Kinetic 94 | 10 14 70 Thermal . | . . . Explosive . | . . . Electromagnetic 26 | . . 26 Robot Hit Streak 10 | 3 3 10 Robot Miss Streak 5 | 1 3 5 Penetration Max . | . . . Secondary Targets 2 | . 1 1 Max Gunslinging Chain 1 | . 1 1 Shots Hit Robots 68 | 5 6 57 Core Hits 34 | 3 4 27 Critical Hits . | . . . Critical Kills . | . . . Critical Parts Destroyed . | . . . Melee Attacks . | . . . Impact . | . . . Slashing . | . . . Piercing . | . . . Sneak Attacks . | . . . Combat Hostiles . | . . . Follow-up Attacks . | . . . Damage Inflicted 972 | 39 75 858 Guns 835 | 39 75 721 Cannons . | . . . Explosions 114 | . . 114 Melee . | . . . Ramming 23 | . . 23 Kinetic 505 | 39 75 391 Thermal 114 | . . 114 Explosive . | . . . Electromagnetic 330 | . . 330 Impact . | . . . Slashing . | . . . Piercing . | . . . Highest Corruption . | . . . Average Corruption . | . . . Corruption Purged . | . . . Overload Shots . | . . . Overflow Damage . | . . . Projectiles . | . . . Explosions . | . . . Melee . | . . . Knockbacks . | . . . Impact . | . . . Kinetic . | . . . Secondary . | . . . Self-Inflicted Damage 31 | . . 31 Shots 1 | . . 1 Rammed 8 | . . 8 Targets Rammed 8 | . . 8 Kicked . | . . . Crushed . | . . . Highest Temperature 249 | . 12 249 Average Temperature 73 | . 10 75 Received Heat Transfer 381 | . 24 357 Siege Activations . | . . . Robots Corrupted . | . . . Combat Hostiles . | . . . Parts Fried 1 | . . 1 Impact Corruptions . | . . . Robots Melted . | . . . Combat Hostiles . | . . . Parts Melted . | . . . Heat Transferred 200 | . . 200 Parts Sabotaged . | . . . Parts Stolen . | . . . Parts Stripped . | . . . Power Chain Reactions 2 | . . 2 Missiles Intercepted . | . . . Alert | -11 -10 -9 ------- Run | Scr Mat Mat Peak Influence 237 | 5 77 237 Average Influence 93 | 1 40 123 Maximum Alert Level 1 | . . 1 Low Security (%) 77 | 100 100 68 Level 1 22 | . . 31 Level 2 . | . . . Level 3 . | . . . Level 4 . | . . . Level 5 . | . . . High Security . | . . . Max Security . | . . . Squads Dispatched 2 | . 1 1 Investigation 1 | . . 1 Extermination . | . . . Reinforcement 1 | . 1 . Assault . | . . . Garrison . | . . . Intercept . | . . . Construction Impeded . | . . . Haulers Reinforced . | . . . Stealth | -11 -10 -9 --------- Run | Scr Mat Mat Distress Signals . | . . . Communications Jammed . | . . . Distress Signals . | . . . Times Spotted 25 | . 4 21 Peak Tracking Total 5 | . 2 5 Tactical Retreats 4 | . . 4 Traps | -11 -10 -9 ------- Run | Scr Mat Mat Traps Triggered 1 | . . 1 Indirectly . | . . . Trap Hack Attempts . | . . . Triggered . | . . . Disarmed . | . . . Reprogrammed . | . . . Reused . | . . . Traps Extracted . | . . . Installed . | . . . Triggered . | . . . Machines | -11 -10 -9 ---------- Run | Scr Mat Mat Machines Disabled . | . . . Max in Single Turn . | . . . Machines Sabotaged . | . . . Garrisons Compromised . | . . . Overloaded Fab Kills . | . . . Fab Network Shutdowns . | . . . Hacking | -11 -10 -9 --------- Run | Scr Mat Mat Machines Accessed 2 | . 1 1 Terminals 1 | . 1 . Fabricators . | . . . Repair Stations . | . . . Recycling Units . | . . . Scanalyzers 1 | . . 1 Garrison Access . | . . . Total Hacks 4 | . 3 1 Successful 3 | . 3 . Failed 1 | . . 1 Catastrophic . | . . . Database Lockouts . | . . . Manual . | . . . Terminals 3 | . 3 . Fabricators . | . . . Repair Stations . | . . . Recycling Units . | . . . Scanalyzers 1 | . . 1 Garrison Access . | . . . Terminal Hacks 3 | . 3 . Record 3 | . 3 . Fabricator Hacks . | . . . Repair Station Hacks . | . . . Recycling Unit Hacks . | . . . Scanalyzer . | . . . Garrison Access Hacks . | . . . Unauthorized Hacks . | . . . Terminals . | . . . Fabricators . | . . . Repair Stations . | . . . Recycling Units . | . . . Scanalyzers . | . . . Garrison Access . | . . . Data Cores Recovered . | . . . Used . | . . . Hacking Detections 1 | . 1 . Full Trace Events . | . . . Feedback Events . | . . . Feedback Blocked . | . . . Robot Schematics Acquired . | . . . Robots Built . | . . . Matter . | . . . Time . | . . . Total Robot Build Rating . | . . . Part Schematics Acquired . | . . . Parts Built . | . . . Matter . | . . . Time . | . . . Total Part Build Rating . | . . . Parts Repaired . | . . . Time . | . . . Parts Recycled . | . . . Recycled Matter . | . . . Retrieved Matter . | . . . Retrieved Components . | . . . Parts Scanalyzed . | . . . Part Schematics Acquired . | . . . Parts Damaged . | . . . Bothacking | -11 -10 -9 ------------ Run | Scr Mat Mat Used RIF Installer . | . . . Robots Hacked . | . . . Non-combat . | . . . Combat . | . . . Robot Hacks Applied . | . . . Relay Couplers Released . | . . . Robots Rewired . | . . . Allies Hacked . | . . . Hacks Repelled . | . . . Allies | -11 -10 -9 -------- Run | Scr Mat Mat Total Allies . | . . . Largest Group . | . . . Highest-Rated Group . | . . . Highest-Rated Ally . | . . . Total Orders . | . . . Ally Attacks . | . . . Total Damage . | . . . Kills . | . . . Allies Corrupted . | . . . Allies Melted . | . . . Intel | -11 -10 -9 ------- Run | Scr Mat Mat Robot Analysis Total . | . . . Derelict Logs Recovered . | . . . Drone Launches . | . . . Drone Recoveries . | . . . Exploration | -11 -10 -9 ------------- Run | Scr Mat Mat Turns Passed 549 | 62 108 379 Spaces Moved 385 | 40 93 252 Core 14 | 5 . 9 Treads . | . . . Legs . | . . . Wheels 371 | 35 93 243 Hover . | . . . Flight . | . . . Fastest Speed 50 | 50 90 50 Average Speed 89 | 87 90 90 Slowest Speed 100 | 100 90 100 Overloaded Moves . | . . . Propulsion Burnouts . | . . . Robots Hopped . | . . . Cave-ins Triggered . | . . . Exploration Rate (%) 20 | 3 29 29 Regions Visited 2 Branch Regions . Pre-discovered Areas . | . . . Known Exits Taken . | . . . Unknown Exits Taken 2 | 1 1 . Scrap Searched . | . . . Spaces Dug . | . . . Terrain Destroyed 10 | . . 10 Melee . | . . . Projectile . | . . . AOE 10 | . . 10 Actions | -11 -10 -9 --------- Run | Scr Mat Mat Total 496 | 58 104 334 Wait 17 | 1 . 16 Move 383 | 39 92 252 Hop . | . . . Pick Up 17 | 8 2 7 Fast Attach . | . . . Attach 10 | 5 . 5 Detach . | . . . Swap 3 | . 2 1 Drop 5 | . 1 4 Fire 53 | 5 7 41 Melee . | . . . Ram 8 | . . 8 Kick . | . . . Crush . | . . . Escape Stasis . | . . . Rewire . | . . . Trap . | . . . Miscellaneous . | . . . Route ------- -11/Scrapyard -10/Materials -9/Materials History --------- Turn | Location | Event 2 | -11/Scrapyard | Met Revision 17 47 | -11/Scrapyard | Discovered new exit (range 14) 63 | -11/Scrapyard | Entered Materials 137 | -10/Materials | Discovered new exit (range 3) 171 | -10/Materials | Entered another Materials area 171 | -9/Materials | Evolved 2 slots: Power x1, Weapon x1 527 | -9/Materials | Core integrity fell below 50% 547 | -9/Materials | Core integrity fell below 20% 550 | -9/Materials | Destroyed by G-34 Mercenary with Small Laser Last Messages --------------- U-05 Engineer lays Concrete. R-06 Scavenger collects Lgt. Nuclear Core. U-05 Engineer lays Concrete. Lgt. Assault Rifle destroyed. U-05 Engineer lays Concrete. Destroyed Sml. Laser. Chain reaction triggered in Ion Engine. U-05 Engineer lays Concrete. Hvy. EM Pulse Gun destroyed. U-05 Engineer builds a Wall. Slammed into U-05 Engineer. R-06 Scavenger collects Structural Scanner. Slammed into U-05 Engineer. R-06 Scavenger collects Wheel. Targeting Computer destroyed. C-30 ARC bursts open, deploying its payload. B-36 Bruiser unfolds itself. G-34 Mercenary unfolds itself. Slammed into Y-45 Defender. Slammed into G-34 Mercenary. Map ----- +----------------------------------------------------+ | #???? | | #### """ """ #???? | | ???# ###### """ """ #???? | | ####+#????# """ """ #???? | | #????# #???? | | """ ###### #???? | | """ + """ """ #???? | | """ # """ """ #???? | | # """ """ """ #???? | | # """ ###### #???? | | "T"" # """ # ??# #???? | | """" # # ?# """ #???? | | # # ?#"" """ #???? | | ###+## # #"Y """ #???? | | ??# # #"" #???? | | ??# # + #???? | | ??# # # #???? | | ??# # # ############???? | | ??# # ?####??????????????? | | ??# ####???????????????????? | | ??# % #??????????????????????? | | ??# [ #?????????########?????? | | ??# #?????????# #?????? | | ??# #?????????# """#?????? | | ??# #?????????# """#?????? | | ### #?????????#@ g"""#?????? | | ####??????# % %% #?????? | | ???# %%Y #?????? | | ???####/###?????? | | """ """ ?????##b##??????? | | """ """ #########?????##%%#??????? | | """ """ #?????????????#"%"#??????? | | #?????????????#"%"#??????? | | +?????????????## ##??????? | | #??????????????#"#???????? | | %! #??????????????#%#???????? | | %* ################"#???????? | | === #???????? | | === "Y" #???????? | | === """ ##########???????? | | #????????????????? | | ! #####+##????????????????? | | ##########+###???????????????????????? | | ?????????? ?????????????????????????? | | ?????????? ?????????????????????????? | | ?????????? "?????????????????????????? | | ?????????? "?????????????????????????? | | ?????????? ??????????????????????????? | | ?????????????????????????????????????? | | ?????????????????????????????????????? | +----------------------------------------------------+ Best States ------------- Heat Dissipation 28 Energy Generation 19 Energy Capacity 400 Matter Stores 300 Matter Capacity 300 Sight Range 16 Terrain Scan Density 10 Evasion (%) 42 Targeting Accuracy 10 Item Schematics ----------------- None Robot Schematics ------------------ None Fabricated ------------ Nothing Alien Tech Used ----------------- None Achievements -------------- None Challenges ------------ None Game ------ Seed UtilityMasterRigger Manual? 0 Play Time 00:10:14 Cumulative 2.5 hours Start 2020.01.08 @ 13:11:32 End 2020.01.08 @ 13:21:57 Sessions 1 Manual Loads 0 Difficulty Rogue Special Mode None Game No. 4 Rogue 4 Adventurer 0 Explorer 0 Win Type - Total 0 Types 0/0/0/0/0/0/0 Lore% 1 Gallery% 6 Achievement% 5 Wizard Run 0 Options --------- ASCII 0 Keyboard 0 Movement Mouse Keybinds 0 Fullscreen 1 Font 18/SmallcapsGlow Map View 76x50 Tactical HUD 0 Map Filters NONE Filters NONE Steam 1 RUN: ec4306e8-05ac-4f15-b63d-82ad0ac44973